Cogmind - Beta 14 @@@ ROGUE MODE // 2025.03.31 @ 13:16:31 Player: golanco Result: Destroyed by G-47 Trooper with Particle Gun Performance ------------- Evolutions (2) 1000 Regions Visited (5) 1000 Robots Destroyed (108) 540 Value Destroyed (2874) 2874 Prototype IDs (26) 520 Alien Tech Used (0) 0 Bonus (562) 562 TOTAL SCORE: 6496 Bonus ------- High Alert Combat Kills 301 Follower Combat Kills 21 Aligned with FarCom 300 Friendly Fire -60 Cogmind --------- Core Integrity 0/550 Matter 300/300 Energy 100/100 System Corruption 0% Temperature Cool (9) Movement Core (1450) Ox28 Location -8/Materials Parts ------- > --- POWER (1) -------- (None) > --- PROPULSION (3) --- (None) > --- UTILITY (5) ------ Huge Storage Unit Transport Network Coupler > --- WEAPON (2) ------- Powered Hammer Scythe > --- INVENTORY (25) --- Light Nuclear Core Light Treads Improved Flight Unit Improved Flight Unit Improved Flight Unit Improved Flight Unit Cesium-ion Thruster Cesium-ion Thruster Cooling System Improved Signal Interpreter Active Sensor Suite ECM Suite Reaction Control System Improved Light Armor Plating Hacking Suite Hacking Suite Peak State ------------ > --- POWER ------------ Light Nuclear Core > --- PROPULSION ------- Improved Treads Improved Treads Armored Treads > --- UTILITY ---------- Huge Storage Unit Structural Scanner Core Shielding Improved Utility Shielding System Shield > --- WEAPON ----------- Heavy Laser Minigun > --- INVENTORY -------- Ion Engine Light Nuclear Core Light Treads Flight Unit Flight Unit Flight Unit Flight Unit Flight Unit Flight Unit VTOL Module Cesium-ion Thruster Cooling System Active Sensor Suite ECM Suite Reaction Control System Hacking Suite Hacking Suite Light Assault Rifle Great Maul Powered Hammer Scythe [Rating: 32] Favorites ----------- Power Ion Engine Engine Ion Engine Power Core Light Nuclear Core Propulsion Improved Treads Treads Improved Treads Utility Huge Storage Unit Device Structural Scanner Storage Huge Storage Unit Processor Transport Network Coupler Hackware System Shield Protection Core Shielding Weapon Grenade Launcher Energy Gun Beam Rifle Energy Cannon Beam Cannon Ballistic Gun Minigun Ballistic Cannon Assault Cannon Launcher Grenade Launcher Impact Weapon Powered Hammer Slashing Weapon Scythe Build | -11 -10 -10 -10 -9 -8 ------- Run | Yrd Mat Min Exi Min Mat Slots Evolved 4 | . . . . . 4 Power . | . . . . . . Propulsion 1 | . . . . . 1 Utility 3 | . . . . . 3 Weapon . | . . . . . . Parts Attached 67 | 8 9 1 . 5 44 Power 7 | 1 . . . . 6 Engine 4 | 1 . . . . 3 Core 3 | . . . . . 3 Reactor . | . . . . . . Propulsion 21 | 2 2 . . 1 16 Treads 21 | 2 2 . . 1 16 Leg . | . . . . . . Wheel . | . . . . . . Hover . | . . . . . . Flight . | . . . . . . Utility 14 | 2 2 1 . . 9 Device 4 | 1 . 1 . . 2 Storage 3 | 1 2 . . . . Processor 1 | . . . . . 1 Hackware 2 | . . . . . 2 Protection 4 | . . . . . 4 Artifact . | . . . . . . Weapon 25 | 3 5 . . 4 13 Energy Gun 7 | 3 1 . . . 3 Energy Cannon 2 | . 1 . . . 1 Ballistic Gun 7 | . 1 . . 2 4 Ballistic Cannon 2 | . . . . . 2 Launcher 5 | . 2 . . 2 1 Special Weapon . | . . . . . . Impact Weapon 1 | . . . . . 1 Slashing Weapon 1 | . . . . . 1 Piercing Weapon . | . . . . . . Special Melee Weapon . | . . . . . . Unidentified Prototypes . | . . . . . . Parts Lost 40 | . 3 1 . 7 29 Power 6 | . . . . 1 5 Propulsion 9 | . . . . 1 8 Utility 8 | . . 1 . 1 6 Weapon 17 | . 3 . . 4 10 Highest Loss Streak 9 | . 2 1 . 4 9 To Critical Strikes . | . . . . . . Average Slot Usage (%) 92 | . 96 97 100 72 93 Engine 5 | . 14 14 14 . 3 Core 3 | . . . . . 5 Treads 27 | . 28 28 28 27 26 Device 8 | . 14 11 14 1 7 Storage 10 | . 14 14 14 14 9 Processor 1 | . . . . . 1 Hackware 6 | . . . . . 9 Protection 8 | . . . . . 12 Energy Gun 3 | . 7 . . . 3 Energy Cannon 2 | . 2 14 14 1 . Ballistic Gun 6 | . 5 . . 12 7 Ballistic Cannon 1 | . . . . . 2 Launcher 6 | . 9 14 14 13 2 Peak Build Rating 32 | 7 11 11 16 16 32 Average Rating 21 | 5 8 9 13 13 27 On Entrance 9 | . 7 10 11 16 10 Naked Turns . | . . . . . . Heaviest Build 105 | 15 92 92 92 92 105 Greatest Support 73 | 40 46 46 46 46 73 Greatest Overweight (x) 28 | . 1 1 1 1 28 Average Overweight (x) . | . . 1 1 1 1 Largest Inventory Capacity 25 | 8 25 25 25 25 25 Average Capacity 23 | 7 10 25 25 25 25 Most Carried 25 | 2 15 16 21 25 25 Average Carried 20 | 1 7 13 17 19 23 Final Capacity 25 | 8 25 25 25 25 25 Final Carried 22 | 2 12 15 21 22 18 Class Distribution -------------------- 57% | Mutant 24% | Scavenger-Mutant 13% | Scavenger-Skirmisher 5% | Hacker-Mutant Dominant Class ---------------- Mutant | -10/Materials Mutant | -10/Mines Mutant | -10/Exiles Mutant | -9/Mines Scavenger-Mutant | -8/Materials Resources | -11 -10 -10 -10 -9 -8 ----------- Run | Yrd Mat Min Exi Min Mat Matter Collected 2436 | 234 202 180 . 367 1453 Remotely . | . . . . . . Salvage Created 3104 | 30 491 94 . 258 2231 Parts 193 | 3 48 1 . 16 125 Haulers Intercepted 7 | . 1 . . . 6 Recyclers Shooed 5 | . 1 . . . 4 Parts Field Recycled . | . . . . . . Retrieved Matter . | . . . . . . Parts Self-Destructed . | . . . . . . Prevented . | . . . . . . Kills | -11 -10 -10 -10 -9 -8 ------- Run | Yrd Mat Min Exi Min Mat Combat Hostiles Destroyed 84 | . 15 4 . 20 45 Guns 35 | . 9 . . 3 23 Cannons 13 | . . . . 1 12 AOE 35 | . 6 4 . 16 9 Classes Destroyed 15 | 1 7 . . 3 4 Worker 6 | . . . . 2 4 Builder 5 | . 1 . . . 4 Tunneler 2 | 1 . . . . 1 Hauler 7 | . 1 . . . 6 Recycler 6 | . 1 . . 2 3 Operator 2 | . 1 . . . 1 Watcher 7 | . 2 . . . 5 Swarmer 21 | . 6 . . 4 11 Grunt 38 | . 9 4 . 4 21 Brawler 2 | . . . . . 2 Duelist 2 | . . . . . 2 Sentry 8 | . . . . . 8 Heavy 1 | . . . . . 1 Zionite 1 | . . . . 1 . Assembled 12 | . . . . 12 . Best Kill Streak 12 | 1 5 2 . 12 10 Combat Bots Only 9 | . 4 2 . 9 7 Max Kills in Single Turn 5 | 1 3 2 . 5 4 Gunslinging . | . . . . . . Exploded 5 | . 1 2 . 5 3 Melee . | . . . . . . Uniques/NPCs Destroyed . | . . . . . . Combat | -11 -10 -10 -10 -9 -8 -------- Run | Yrd Mat Min Exi Min Mat Hostile Shots Fired 441 | . 60 16 . 35 330 Missed 114 | . 14 6 . 14 80 Damage Taken 5515 | . 553 180 . 613 4169 Core 750 | . 85 . . 103 562 Absorbed by Shields . | . . . . . . Redirected to Shielding 44 | . . . . . 44 Regen/Repaired (Parts) 144 | . . . . . 144 Core Remaining (%) 62 | 100 . . . 24 . Volleys Fired 327 | 9 52 9 . 30 227 Largest 2 | 2 2 2 . 2 2 Hottest 106 | 80 90 90 . 90 106 Shots Fired 565 | 18 82 18 . 55 392 Gun 383 | 18 66 . . 25 274 Cannon 110 | . 3 9 . 2 96 Launcher 72 | . 13 9 . 28 22 Special . | . . . . . . Kinetic 281 | . 18 . . 25 238 Thermal 124 | . 3 9 . 2 110 Explosive 72 | . 13 9 . 28 22 Electromagnetic 88 | 18 48 . . . 22 Robot Hit Streak 16 | 4 16 4 . 6 11 Robot Miss Streak 5 | 3 5 2 . 3 4 Penetration Max . | . . . . . . Secondary Targets 5 | . 1 . . . 4 Max Gunslinging Chain 1 | . 1 . . . 1 Shots Hit Robots 335 | 12 41 9 . 27 246 Core Hits 210 | 2 30 12 . 43 123 Critical Kills . | . . . . . . Critical Parts Destroyed 1 | . . . . . 1 Critical Strikes 12 | 1 1 . . . 10 Burn 7 | . . . . . 7 Blast 2 | . . . . . 2 Corrupt 2 | 1 1 . . . . Smash 1 | . . . . . 1 Melee Attacks 4 | . . . . . 4 Impact 3 | . . . . . 3 Slashing 1 | . . . . . 1 Piercing . | . . . . . . Sneak Attacks . | . . . . . . Combat Hostiles . | . . . . . . Follow-up Attacks 1 | . . . . . 1 Damage Inflicted 8746 | 159 1150 491 . 1520 5426 Guns 3457 | 159 522 . . 124 2652 Cannons 1488 | . . 69 . 35 1384 Explosions 3666 | . 611 422 . 1361 1272 Melee 118 | . . . . . 118 Ramming 17 | . 17 . . . . Kinetic 2944 | . 160 . . 124 2660 Thermal 1573 | . 21 69 . 248 1235 Explosive 3396 | . 590 422 . 1148 1236 Electromagnetic 698 | 159 362 . . . 177 Impact 86 | . . . . . 86 Slashing 32 | . . . . . 32 Piercing . | . . . . . . Highest Corruption 3 | . . . . 3 . Average Corruption 3 | . . . . 3 . Corruption Purged . | . . . . . . Corruption Blocked . | . . . . . . Effects 12 | . . . . 12 . Message Errors 5 | . . . . 5 . Matter Fused 2 | . . . . 2 . Heat Flow Errors 2 | . . . . 2 . Data Loss (minor) 1 | . . . . 1 . Misfires 2 | . . . . 2 . Overload Shots . | . . . . . . Overflow Damage 189 | . . . . 83 106 Projectiles 48 | . . . . . 48 Explosions 83 | . . . . 83 . Melee 58 | . . . . . 58 Knockbacks 14 | . . . . . 14 Impact 2 | . . . . . 2 Kinetic 11 | . . . . . 11 Secondary 1 | . . . . . 1 Self-Inflicted Damage 323 | . 69 57 . 87 110 Shots 16 | . 3 3 . 4 6 Rammed 2 | . 2 . . . . Targets Rammed 2 | . 2 . . . . Kicked . | . . . . . . Crushed . | . . . . . . Highest Temperature 370 | 124 250 189 . 227 370 Average Temperature 80 | 61 87 86 . 78 79 Received Heat Transfer 2139 | . 222 60 . 30 1827 Effects 2 | . . . . . 2 Shutdowns 1 | . . . . . 1 Damage (minor) 1 | . . . . . 1 Siege Activations . | . . . . . . Robots Corrupted 1 | . . . . . 1 Combat Hostiles 1 | . . . . . 1 Parts Fried 3 | . . . . . 3 Impact Corruptions 1 | . . . . . 1 Robots Melted . | . . . . . . Combat Hostiles . | . . . . . . Parts Melted 6 | . . . . . 6 Heat Transferred 3878 | . 50 148 . 374 3306 Parts Sabotaged . | . . . . . . Parts Stolen . | . . . . . . Parts Stripped . | . . . . . . Power Chain Reactions 2 | . 1 . . . 1 Alert | -11 -10 -10 -10 -9 -8 ------- Run | Yrd Mat Min Exi Min Mat Peak Influence 957 | 5 369 230 . 181 957 Initial 70 | . 3 69 . . 70 Average 363 | 1 174 105 . 115 459 Maximum Alert Level 3 | . 1 1 . . 3 Low Security (%) 37 | 100 54 81 . 100 21 Level 1 21 | . 45 18 . . 21 Level 2 27 | . . . . . 38 Level 3 12 | . . . . . 18 Level 4 . | . . . . . . Level 5 . | . . . . . . High Security . | . . . . . . Max Security . | . . . . . . Squads Dispatched 11 | . 4 . . 1 6 Investigation 4 | . 3 . . . 1 Extermination . | . . . . . . Reinforcement 5 | . 1 . . 1 3 Assault 2 | . . . . . 2 Garrison . | . . . . . . Intercept . | . . . . . . Searches Triggered . | . . . . . . Construction Impeded 1 | . . . . 1 . Haulers Reinforced . | . . . . . . Active Scanning Responses . | . . . . . . Cargo Convoy Interrupts . | . . . . . . Stealth | -11 -10 -10 -10 -9 -8 --------- Run | Yrd Mat Min Exi Min Mat Distress Signals 8 | . . . . 1 7 Communications Jammed . | . . . . . . Distress Signals . | . . . . . . Times Spotted 126 | . 21 6 . 23 76 Peak Tracking Total 7 | . 3 3 . 6 7 Tactical Retreats 8 | . . 1 . 2 5 Traps | -11 -10 -10 -10 -9 -8 ------- Run | Yrd Mat Min Exi Min Mat Traps Triggered . | . . . . . . Indirectly . | . . . . . . Trap Hack Attempts . | . . . . . . Triggered . | . . . . . . Disarmed . | . . . . . . Reprogrammed . | . . . . . . Reused . | . . . . . . Traps Extracted . | . . . . . . Installed . | . . . . . . Triggered 2 | . 2 . . . . Machines | -11 -10 -10 -10 -9 -8 ---------- Run | Yrd Mat Min Exi Min Mat Machines Disabled 19 | . 3 . . 7 9 Max in Single Turn 3 | . 1 . . 3 1 Machines Repaired . | . . . . . . Machines Dismantled . | . . . . . . Machines Sabotaged . | . . . . . . Overloaded Fab Kills . | . . . . . . Hacking | -11 -10 -10 -10 -9 -8 --------- Run | Yrd Mat Min Exi Min Mat Machines Accessed 19 | . 4 . 2 . 13 Terminals 11 | . 2 . . . 9 Fabricators . | . . . . . . Repair Stations 1 | . . . . . 1 Recycling Units 3 | . 2 . . . 1 Scanalyzers 2 | . . . . . 2 Garrison Access . | . . . . . . Total Hacks 80 | . 10 . 23 . 47 Successful 53 | . 2 . 23 . 28 Failed 27 | . 8 . . . 19 Catastrophic 6 | . 2 . . . 4 Database Lockouts . | . . . . . . Manual 8 | . . . 1 . 7 Terminals 41 | . 4 . . . 37 Fabricators . | . . . . . . Repair Stations 2 | . . . . . 2 Recycling Units 8 | . 6 . . . 2 Scanalyzers 6 | . . . . . 6 Garrison Access . | . . . . . . Terminal Hacks 43 | . 1 . 23 . 19 Record 34 | . . . 22 . 12 Prototype ID Bank 1 | . . . . . 1 Branch Access Points 1 | . . . . . 1 Emergency Access Points 1 | . . . . . 1 Alert Level 1 | . . . . . 1 Hauler Manifests 3 | . 1 . . . 2 Registered Components 1 | . . . . . 1 Derelict Proto ID Bank 1 | . . . 1 . . Fabricator Hacks . | . . . . . . Repair Station Hacks 2 | . . . . . 2 Scan Component 1 | . . . . . 1 Repair 1 | . . . . . 1 Recycling Unit Hacks 2 | . 1 . . . 1 Retrieve Components 2 | . 1 . . . 1 Scanalyzer 5 | . . . . . 5 Insert Component 2 | . . . . . 2 Analyze 3 | . . . . . 3 Garrison Access Hacks . | . . . . . . Unauthorized Hacks 1 | . . . . . 1 Terminals 1 | . . . . . 1 Botnet 1 | . . . . . 1 Fabricators . | . . . . . . Repair Stations . | . . . . . . Recycling Units . | . . . . . . Scanalyzers . | . . . . . . Garrison Access . | . . . . . . Data Cores Recovered . | . . . . . . Used . | . . . . . . Hacking Detections 12 | . 2 . . . 10 Full Trace Events 1 | . 1 . . . . Feedback Events . | . . . . . . Feedback Blocked . | . . . . . . Robot Schematics Acquired . | . . . . . . Robots Built . | . . . . . . Authchips . | . . . . . . Time . | . . . . . . Total Robot Build Rating . | . . . . . . Part Schematics Acquired 2 | . . . . . 2 Parts Built . | . . . . . . Authchips . | . . . . . . Time . | . . . . . . Total Part Build Rating . | . . . . . . Parts Repaired 1 | . . . . . 1 Time 32 | . . . . . 32 Parts Recycled . | . . . . . . Recycled Matter . | . . . . . . Retrieved Matter . | . . . . . . Retrieved Components 10 | . 3 . . . 7 Parts Scanalyzed 2 | . . . . . 2 Part Schematics Acquired 2 | . . . . . 2 Parts Damaged . | . . . . . . Bothacking | -11 -10 -10 -10 -9 -8 ------------ Run | Yrd Mat Min Exi Min Mat Used RIF Installer . | . . . . . . Robots Hacked . | . . . . . . Non-combat . | . . . . . . Combat . | . . . . . . Robot Hacks Applied . | . . . . . . Relay Couplers Released . | . . . . . . Fabnet Peak Effective % . | . . . . . . Robots Rewired . | . . . . . . Allies Hacked . | . . . . . . Hacks Repelled . | . . . . . . Allies | -11 -10 -10 -10 -9 -8 -------- Run | Yrd Mat Min Exi Min Mat Total Allies 3 | . . 3 . . . Largest Group 3 | . . 3 2 2 . Highest-Rated Group 40 | . . 40 24 24 . Highest-Rated Ally 16 | . . 16 16 16 . Total Orders . | . . . . . . Ally Attacks 15 | . . 11 . 4 . Total Damage 162 | . . 123 . 39 . Kills 5 | . . 4 . 1 . Allies Corrupted . | . . . . . . Allies Melted . | . . . . . . Intel | -11 -10 -10 -10 -9 -8 ------- Run | Yrd Mat Min Exi Min Mat Robot Analysis Total . | . . . . . . Derelict Logs Recovered 2 | . . 1 . 1 . Drone Launches . | . . . . . . Drone Recoveries . | . . . . . . Exploration | -11 -10 -10 -10 -9 -8 ------------- Run | Yrd Mat Min Exi Min Mat Turns Passed 8707 | 120 943 746 505 595 5798 Spaces Moved 3273 | 52 471 290 211 206 2043 Core 3 | 2 . . . . 1 Treads 3270 | 50 471 290 211 206 2042 Legs . | . . . . . . Wheels . | . . . . . . Hover . | . . . . . . Flight . | . . . . . . Fastest Speed 50 | 50 160 240 240 240 235 Average Speed 228 | 155 163 240 240 240 241 Slowest Speed 1450 | 160 240 240 240 240 1450 Overloaded Moves . | . . . . . . Propulsion Burnouts . | . . . . . . Robots Hopped . | . . . . . . Cave-ins Triggered . | . . . . . . Exploration Rate (%) 57 | 6 66 63 59 53 98 Regions Visited 5 Branch Regions 3 Pre-discovered Areas 4 | . . 2 1 1 . Known Exits Taken . | . . . . . . Unknown Exits Taken 5 | 1 1 1 1 1 . Scrap Searched 1 | . . . . 1 . Spaces Dug . | . . . . . . Terrain Destroyed 492 | . 81 51 . 137 223 Melee . | . . . . . . Projectile 13 | . . . . . 13 AOE 479 | . 81 51 . 137 210 Terrain Rammed . | . . . . . . Walls Destroyed . | . . . . . . Machines Disabled . | . . . . . . Actions | -11 -10 -10 -10 -9 -8 --------- Run | Yrd Mat Min Exi Min Mat Total 3966 | 70 567 323 211 259 2536 Wait 185 | . 3 20 . 2 160 Move 3268 | 51 470 289 210 205 2043 Hop . | . . . . . . Pick Up 73 | 1 20 4 1 14 33 Fast Attach 19 | 8 1 . . . 10 Attach 32 | . 3 1 . 5 23 Detach 2 | 1 1 . . . . Swap 16 | . 5 . . . 11 Drop 39 | . 10 . . 3 26 Fire 327 | 9 52 9 . 30 227 Melee 3 | . . . . . 3 Ram . | . . . . . . Kick . | . . . . . . Crush 2 | . 2 . . . . Escape Stasis . | . . . . . . Rewire . | . . . . . . Trap . | . . . . . . Miscellaneous . | . . . . . . Route ------- -11/Scrapyard -10/Materials (discovered 3 exits: [*Mat] / [*Min x2]) -10/Mines (discovered 3 exits: [*Mat x2] / *Exi) -10/Exiles -9/Mines -8/Materials (discovered 3 exits: [*Fac x3]) History --------- Turn | Location | Event 12 | -11/Scrapyard | Discovered new exit (range 15) 121 | -11/Scrapyard | Entered Materials 304 | -10/Materials | Build established: Mutant 317 | -10/Materials | Discovered new exit (range 13) 712 | -10/Materials | Discovered new exit (range 6) 954 | -10/Materials | Discovered new exit (range 7) 1064 | -10/Materials | Entered Mines 1071 | -10/Mines | Received a Rocket Launcher from a helpful Derelict 1085 | -10/Mines | Discovered new exit (range 5) 1183 | -10/Mines | Learned location of Mines (-9) 1237 | -10/Mines | Learned location of Storage (-9) 1483 | -10/Mines | Discovered new exit (range 14) 1620 | -10/Mines | Assisted by bots powering up and referring to "LRC-V3" 1797 | -10/Mines | Deemed a non-threat by the Exiles lab entrance 1797 | -10/Mines | Discovered new exit (range 5) 1810 | -10/Mines | Entered Exiles 1810 | -10/Exiles | Accompanied by 2 allies 1868 | -10/Exiles | Met 8R-AWN 1911 | -10/Exiles | Met EX-HEX 1981 | -10/Exiles | Met EX-BIN 2010 | -10/Exiles | Aligned with FarCom system 2012 | -10/Exiles | Given EX-Vault access code 2067 | -10/Exiles | Opened EX-Vault 2084 | -10/Exiles | Found Army-in-a-Box 2138 | -10/Exiles | Warned to stay clear of 0b10 Research branches 2165 | -10/Exiles | Exiles lab attacked by MAIN.C 2219 | -10/Exiles | Learned location of Zion (-6) 2291 | -10/Exiles | Discovered new exit (range 12) 2315 | -10/Exiles | Left Exiles lab with Army-in-a-Box 2315 | -10/Exiles | Entered Mines 2315 | -9/Mines | Accompanied by 2 allies 2316 | -9/Mines | Assembled infested the area 2321 | -9/Mines | Assisted by a Guerilla fighting off Assembled 2366 | -9/Mines | Core integrity fell below 50% 2388 | -9/Mines | Lost 4 allies 2396 | -9/Mines | Lost 4 parts (1p1u2w) 2419 | -9/Mines | Destroyed 9 combat bots 2518 | -9/Mines | Lost 3 parts (1n2w) 2879 | -9/Mines | Discovered new exit (range 8) 2910 | -9/Mines | Entered Materials 2910 | -8/Materials | Evolved 4 slots: Propulsion x1, Utility x3 3500 | -8/Materials | Discovered new exit (range 3) 3526 | -8/Materials | Build established: Hacker-Mutant 3724 | -8/Materials | Destroyed 7 combat bots 3966 | -8/Materials | Build established: Mutant 4840 | -8/Materials | Discovered new exit (range 15) 4893 | -8/Materials | Found Prototype Device 5108 | -8/Materials | Repaired Imp. Treads 5708 | -8/Materials | Build established: Scavenger-Mutant 6335 | -8/Materials | Lost 3 parts (1p1n1w) 7560 | -8/Materials | Discovered new exit (range 10) 7710 | -8/Materials | First assault squad dispatched 7799 | -8/Materials | Build established: Scavenger-Skirmisher 7824 | -8/Materials | Core integrity fell below 50% 8677 | -8/Materials | Core integrity fell below 20% 8708 | -8/Materials | Destroyed by G-47 Trooper with Particle Gun Last Messages --------------- K-01 Serf collects debris. U-05 Engineer lays Concrete. U-05 Engineer builds a Wall. Lgt. Deuterium Engine destroyed. Critical hit (Burn: +37). Lgt. Treads destroyed. U-05 Engineer lays Concrete. K-01 Serf collects debris. Critical hit (Burn: +37). K-01 Serf collects debris. U-05 Engineer lays Concrete. K-01 Serf collects debris. U-05 Engineer lays Concrete. K-01 Serf collects debris. K-01 Serf destroyed. G-47 Trooper IFF system glitched. K-01 Serf collects debris. G-47 Trooper destroyed. K-01 Serf collects debris. G-47 Trooper IFF system glitched. Map ----- +----------------------------------------------------+ | "" ## ##""" ##?????####### ## ## ## | | "" ## ##""" ]##?????################ ##!![[//## | | ## ##""" ##?????## ## ##!![[//## | | "" ## ## ######### """ """ ## ########## | | "" # ###+############ """"""""" ## ########## | | "" # ## """"" " ## ###??????? | | + ## ## ###??????? | | #### ## # ##??????? | | #### ########### ####+#####+#### ##????### | | #################### ## # ## ##????### | | ###########???????## # # ### ##????!!! | | ##??????????## # # ### ##??? | | ##### ##??????????## # # ### #### | | ##### #########???## # [### #### | | #?###+#########???## ## %### | | #### ##???## ## ### | | #### ##???## ## % ### | | "" # """ ##???## # ######+######## | | Y" # """"" ##???## # # ## ##### | | " ##???## ## ## """ ##??? | | ##???## ## ## """ ##??? | | ##???## ## ## """ ##??? | | != ####### ## # ## ##??? | | ########+########### %#=##+### #"S ##??? | | % % =%k* % #""" ##??? | | % [=!@ % # "" ##??? | | k % g # ##??? | | # ################+########## ###########??? | | ############# #/// ######### !##??? | | ### """ #/// ######### ! ##??? | | % ###* """ +/// ##?????## """ ##??? | | % ### """ # / ##?????## """ ##??? | | #######% %###* #[ ! ##?????## """ ##### | | ############ % ### ! # ######### ##### | | ############ =##########+#+#############+#### | | # =########## #### | | # %%[[[%[[[! #### !! | | """ # [#######+####+############ #### !! | | """ #% # ] ## ### ####### #### ![ | | " " """ +% # / ## # ???"""? # #### | | "R" #% # ]/ ## # ??""""" # #### | | """ ! # # ##= # ??""""" # #### | | ############% # ## # ??""""" + #### | | ## # # % "" ## # ? """ #% ## ####+ | | ?? """ """ #% # "" ## # #^[% | | ????"" "" # # "" ###### #^= ! | | ## ?"" """ + + ###### # ![ | | ## # ######################### ^ !^= | | ## # # # #### ^ | | ## # # """ # """ """ #### | +----------------------------------------------------+ Best States ------------- Heat Dissipation 31 Energy Generation 14 Energy Capacity 275 Matter Stores 300 Matter Capacity 300 Sight Range 16 Terrain Scan Density 10 Armor Coverage 150 Core Shielding 20 Utility Shielding 66 Evasion (%) 40 Recoil Reduction 3 Defensive Hacking 20 Item Schematics ----------------- Hacking Suite | -8/Materials | Scanalyzed Imp. Flight Unit | -8/Materials | Scanalyzed Robot Schematics ------------------ None Fabricated ------------ Nothing Alien Tech Used ----------------- None Achievements -------------- None Challenges ------------ None Game ------ Seed GammaBottomlessCorpse Manual? 0 Play Time 00:54:17 Cumulative 28.4 hours Start 2025.03.31 @ 12:24:48 End 2025.03.31 @ 13:16:31 Sessions 1 Manual Loads 0 Difficulty Rogue Special Mode None Game No. 76 Rogue 76 Adventurer 0 Explorer 0 Win Type - Total 0 Types 0/0/0/0/0/0/0/0/0 Lore% 16 Gallery% 23 Achievement% 25 Wizard Run 0 Options --------- Layout 1 ASCII 0 Keyboard 0 Movement Mouse Keybinds 0 Fullscreen 1 Font 36/Smallcaps Map View 50x40 Zoom Use 0% Tactical HUD 0 Map Filters NONE Filters NONE Steam 1 RUN: d609d571-d0c4-4f54-af31-36de57cf6d1c